lending/lending_fUSD_20251107
["ID","MTS","AMOUNT","RATE_DAILY","PERIOD"]
[393346278,1762498240747,-500.0,0.00027637,2]
[393346279,1762498240757,-500.0,0.00027637,2]
[393346280,1762498240766,-513.0,0.00027637,2]
[393346281,1762498240775,-150.0,0.00027774,2]
[393346282,1762498240784,-408.98498589,0.00027774,2]
[393346283,1762498240794,-406.55778374,0.00027774,2]
[393346284,1762498240803,-500.0,0.00027774,2]
[393346285,1762498240812,-500.0,0.00027774,2]
[393346286,1762498240822,-500.0,0.00027774,2]
[393346287,1762498240831,-500.0,0.00027774,2]
[393346288,1762498240840,-472.70415926,0.00027774,2]
[393346289,1762498240849,-513.0,0.00027774,2]
[393346290,1762498240859,-156.32912669,0.00027911,2]
[393346291,1762498240868,-500.0,0.00027911,2]
[393346292,1762498240878,-500.0,0.00027911,2]
[393346293,1762498240887,-500.0,0.00027911,2]
[393346294,1762498240900,-500.0,0.00027911,2]
[393346295,1762498240909,-513.0,0.00027911,2]
[393346296,1762498240919,-500.0,0.00028033,5]
[393346297,1762498240932,-500.0,0.00028048,2]
[393346298,1762498240941,-500.0,0.00028048,2]
[393346299,1762498240951,-500.0,0.00028048,2]
[393346300,1762498240960,-500.0,0.00028048,2]
[393346301,1762498240969,-513.0,0.00028048,2]
[393346302,1762498240979,-1000.0,0.00028081,5]
[393346303,1762498240988,-500.0,0.00028185,2]
[393346304,1762498240998,-500.0,0.00028185,2]
[393346305,1762498241007,-157.56828376,0.00028185,2]
[393346306,1762498241017,-167.43543441,0.00028185,2]
[393346307,1762498241026,-513.0,0.00028185,2]
[393346308,1762498241036,-500.0,0.00028322,2]
[393346309,1762498241045,-500.0,0.00028322,2]
[393346310,1762498241055,-513.0,0.00028322,2]
[393346311,1762498241064,-6453.0,0.0002838,2]
[393346312,1762498241074,-226.25909422,0.00028415,2]
[393346313,1762498241083,-407.2663696,0.00028415,2]
[393346314,1762498241093,-297.83150041,0.00028458,2]
[393346315,1762498241102,-500.0,0.00028459,2]
[393346316,1762498241112,-407.89774482,0.00028459,2]
[393346317,1762498241121,-513.0,0.00028459,2]
[393346318,1762498241131,-263.48,0.00028504,2]
[393346319,1762498241141,-501.0611995,0.00028581,5]
[393346320,1762498241151,-500.0,0.00028596,2]
[393346321,1762498241160,-513.0,0.00028596,2]
[393346322,1762498241170,-330.78402074,0.00028629,5]
[393346323,1762498241180,-500.0,0.00028685,2]
[393346324,1762498241190,-500.0,0.00028733,2]
[393346325,1762498241199,-513.0,0.00028733,2]
[393346326,1762498241209,-2251.27783872,0.00028733,2]
[393346327,1762498241218,-500.0,0.0002887,2]
[393346328,1762498241228,-513.0,0.0002887,2]
[393346329,1762498241237,-215.98508872,0.00028956,2]
[393346330,1762498241247,-500.0,0.00029007,2]
[393346331,1762498241256,-513.0,0.00029007,2]
[393346332,1762498241266,-500.0,0.00029144,2]
[393346333,1762498241275,-513.0,0.00029144,2]
[393346334,1762498241284,-215.98508872,0.00029148,2]
[393346335,1762498241294,-500.0,0.00029281,2]
[393346336,1762498241303,-513.0,0.00029281,2]
[393346337,1762498241312,-883.36826314,0.00029301,2]
[393346338,1762498241321,-215.98508872,0.00029316,2]
[393346339,1762498241331,-883.36826314,0.00029329,2]
[393346340,1762498241340,-500.0,0.00029418,2]
[393346341,1762498241349,-513.0,0.00029418,2]
[393346342,1762498241358,-500.0,0.00029497,2]
[393346343,1762498241368,-500.0,0.00029555,2]
[393346344,1762498241377,-513.0,0.00029555,2]
[393346345,1762498241386,-883.36826314,0.00029655,2]
[393346346,1762498241395,-568.34005802,0.00029692,2]
[393346347,1762498241405,-513.0,0.00029692,2]
[393346348,1762498241413,-215.98508872,0.0002975,2]
[393346349,1762498241422,-513.0,0.00029829,2]
[393346350,1762498241432,-883.36826314,0.0002992,2]
[393346351,1762498241441,-2251.27783872,0.00029929,2]
[393346352,1762498241451,-263.48,0.00029929,2]
[393346353,1762498241460,-513.0,0.00029966,2]
[393346354,1762498241474,-482.70602472,0.0003,2]
[393346355,1762498241484,-513.0,0.00030103,2]
[393346356,1762498241494,-215.98508872,0.00030103,2]
[393346357,1762498241504,-474.89,0.0003011,2]
[393346358,1762498241514,-208.49035451,0.0003013,14]
[393346359,1762498241524,-175.48706705,0.00030137,120]
[393346360,1762498241535,-513.0,0.0003024,2]
[393346361,1762498241544,-883.36826314,0.00030246,2]
[393346362,1762498241553,-513.0,0.00030377,2]
[393346363,1762498241562,-215.98508872,0.00030381,2]
[393346364,1762498241571,-883.36826314,0.00030458,2]
[393346365,1762498241580,-513.0,0.00030514,2]
[393346366,1762498241589,-215.98508872,0.00030546,2]
[393346367,1762498241599,-530.95593767,0.00030651,2]
[393346368,1762498241608,-883.36826314,0.00030914,2]
[393346369,1762498241617,-215.98508872,0.00030927,2]
[393346370,1762498241627,-215.98508872,0.00031086,2]
[393346371,1762498241636,-9035.0,0.00031121,3]
[393346372,1762498241646,-2251.27783872,0.00031125,2]
[393346373,1762498241659,-883.36826314,0.0003123,2]
[393346374,1762498241668,-883.36826314,0.00031277,2]
[393346375,1762498241678,-215.98508872,0.00031346,2]
[393346376,1762498241688,-263.48,0.00031354,2]
[393346377,1762498241698,-3305.31337429,0.0003145,2]
[393346378,1762498241707,-2000.0,0.000315,2]
[393346379,1762498241716,-500.0,0.00031507,2]
[393346380,1762498241727,-500.0,0.00031644,2]
[393346381,1762498241736,-215.98508872,0.00031671,2]
[393346382,1762498241746,-2239.745,0.00031736,30]
[393346383,1762498241756,-151.133,0.00031736,30]
[393346384,1762498241765,-883.36826314,0.00031737,2]
[393346385,1762498241774,-206.27494664,0.00031781,2]
[393346386,1762498241783,-1459.0,0.000318,2]
[393346387,1762498241792,-474.89,0.00031805,2]
[393346388,1762498241801,-883.36826314,0.00031841,2]
[393346389,1762498241810,-9955.0,0.00031892,2]
[393346390,1762498241820,-215.98508872,0.00031941,2]
[393346391,1762498241829,-159.0,0.00032,31]
[393346392,1762498241839,-477.99034883,0.00032,3]
[393346393,1762498241848,-384.66097257,0.00032052,2]
[393346394,1762498241857,-2935.10349825,0.0003206,2]
[393346395,1762498241866,-180.32055716,0.0003206,15]
[393346396,1762498241876,-349.94707596,0.00032062,2]
[393346397,1762498241885,-720.0,0.000321,3]
[393346398,1762498241894,-163.36,0.00032142,2]
[393346399,1762498241903,-500.0,0.00032151,120]
[393346400,1762498241913,-515.63484931,0.00032151,120]
[393346401,1762498241922,-500.0,0.00032151,7]
[393346402,1762498241931,-500.0,0.00032151,2]
[393346403,1762498241941,-253772.211396,0.00032152,3]
[393346404,1762498241955,-117445.921353,0.00032152,3]
[393346405,1762498241964,-163.36,0.00032152,2]
[393346406,1762498241973,-163.36,0.00032152,2]
[393346407,1762498241982,-500.0,0.00032161,120]
[393346408,1762498241992,-500.0,0.00032161,7]
[393346409,1762498242001,-286.66966762,0.00032161,2]
[393346410,1762498242011,-14771.3956317,0.00032162,2]
[393346411,1762498242020,-228063.62868254,0.00032162,2]
[393346429,1762498243119,-500.0,0.00020681,2]
[393346430,1762498243129,-500.0,0.00020818,2]
[393346431,1762498243138,-500.0,0.00020955,2]
[393346432,1762498243148,-467.16879646,0.00021092,2]
[393346433,1762498243300,-14.32997556,0.00021092,2]
[393346456,1762498246347,-18.50122798,0.00021092,2]
[393346457,1762498246357,-500.0,0.00021229,2]
[393346458,1762498246366,-500.0,0.00021366,2]
[393346459,1762498246375,-500.0,0.00021503,2]
[393346460,1762498246385,-92.3137721,0.0002164,2]
[393346464,1762498487024,500.0,0.00029928,120]
[393346468,1762498627686,218.73829698,0.00038705,30]
[393346469,1762498627998,151.0,0.00038705,30]
[393346470,1762498628401,151.0,0.00038705,30]
[393346471,1762498629002,151.0,0.00038705,30]
[393346472,1762498629616,151.0,0.00038705,30]
[393346473,1762498630593,253.12295842,0.00038705,30]
[393346474,1762498633067,507.36553617,0.00038705,30]
[393346475,1762498634676,195.15674029,0.00038705,30]
[393346477,1762498820311,735.4,0.00013699,2]
[393346480,1762498868247,275.03,0.00030137,120]
[393346481,1762498933278,202.65616721,0.00038704,30]
[393346482,1762498992529,455072.47,0.00038704,30]
[393346483,1762499006490,1063.76414209,0.00038704,120]
[393346486,1762499260673,2167.41,0.00011614,2]
[393346487,1762499260870,2167.41,0.00012201,2]
[393346488,1762499261064,2167.41,0.00012788,2]
[393346489,1762499261271,2167.41,0.00013375,2]
[393346490,1762499261501,2167.41,0.00013963,2]
[393346491,1762499261704,2167.41,0.0001455,2]
[393346519,1762499432295,-300.0,0.00015136,2]
[393346520,1762499432304,-300.0,0.00015136,2]
[393346521,1762499432314,-1200.0,0.00015136,2]
[393346522,1762499432324,-500.0,0.00015137,2]
[393346523,1762499432334,-500.0,0.00015137,2]
[393346524,1762499432344,-500.0,0.00015137,2]
[393346525,1762499432353,-500.0,0.00015137,2]
[393346526,1762499432363,-500.0,0.00015137,2]
[393346527,1762499432372,-500.0,0.00015137,2]
[393346528,1762499432382,-500.0,0.00015137,2]
[393346529,1762499432390,-500.0,0.00015137,2]
[393346530,1762499432399,-500.0,0.00015137,2]
[393346531,1762499432409,-500.0,0.00015137,2]
[393346532,1762499432419,-500.0,0.00015137,2]
[393346533,1762499432428,-500.0,0.00015137,2]
[393346534,1762499432438,-500.0,0.00015137,2]
[393346535,1762499432447,-2167.41,0.00015137,2]
[393346536,1762499432456,-240.69487874,0.000156,2]
[393346537,1762499432466,-500.0,0.000157,2]
[393346538,1762499432476,-500.0,0.000157,2]
[393346539,1762499432485,-500.0,0.000157,2]
[393346540,1762499432498,-2167.41,0.00015724,2]
[393346541,1762499432507,-250.0,0.00015792,2]
[393346542,1762499432517,-250.0,0.00016171,2]
[393346543,1762499432526,-2167.41,0.00016312,2]
[393346544,1762499432535,-500.0,0.00016438,2]
[393346557,1762499432756,-500.0,0.00016473,2]
[393346559,1762499432766,-160.10830058,0.00016473,2]
[393346562,1762499432776,-1200.0,0.00016497,2]
[393346564,1762499432786,-425.68983996,0.00016499,2]
[393346566,1762499432795,-655.56,0.00016499,2]
[393346568,1762499432804,-150.0,0.00016499,2]
[393346570,1762499432816,-5630.4021359,0.000165,2]
[393346573,1762499432831,-5528.15418,0.000165,2]
[393346575,1762499432842,-19978.44620186,0.000165,2]
[393346577,1762499432853,-1305.0,0.000165,2]
[393346580,1762499432870,-64799.4200542,0.000165,2]
[393346582,1762499432879,-420.0,0.00016563,2]
[393346584,1762499432888,-1680.0,0.00016647,2]
[393346586,1762499432897,-195.0,0.00016651,2]
[393346588,1762499432907,-655.56,0.00016773,2]
[393346590,1762499432916,-2167.41,0.00016899,2]
[393346592,1762499432924,-250.0,0.00017,2]
[393346594,1762499432934,-1000.0,0.00017021,2]
[393346596,1762499432943,-564.9241408,0.00017047,2]
[393346599,1762499432964,-90.6358592,0.00017047,2]
[393346601,1762499432973,-231.71717103,0.00017269,2]
[393346603,1762499432983,-618.93664891,0.00017269,2]
[393346605,1762499432992,-306.39744405,0.00017269,2]
[393346607,1762499433001,-500.0,0.00017269,2]
[393346609,1762499433010,-1008.31287681,0.0001727,2]
[393346611,1762499433026,-8718.78712319,0.0001727,2]
[393346614,1762499433036,-150.99,0.0001727,2]
[393346616,1762499433045,-195.0,0.0001727,2]
[393346617,1762499433054,-250.0,0.0001727,2]
[393346619,1762499433064,-655.56,0.00017321,2]
[393346622,1762499433074,-2167.41,0.00017486,2]
[393346624,1762499433084,-338.57656952,0.00017534,2]
[393346626,1762499433093,-1500.0,0.00017568,2]
[393346628,1762499433103,-655.56,0.00017595,2]
[393346629,1762499433113,-655.5858114,0.00017869,2]
[393346631,1762499433122,-2167.41,0.00018073,2]
[393346633,1762499433131,-2000.0,0.00018116,2]
[393346636,1762499433140,-587.0,0.00018125,2]
[393346638,1762499433149,-2351.0,0.00018309,2]
[393346639,1762499433158,-2167.41,0.00018661,2]
[393346641,1762499433168,-2500.0,0.00018664,2]
[393346643,1762499433177,-477.99034883,0.00018752,2]
[393346645,1762499433186,-300.0,0.00019,2]
[393346647,1762499433195,-326.62050632,0.00019212,2]
[393346650,1762499433204,-2167.41,0.00019248,2]
[393346652,1762499433218,-1660.41,0.00019339,2]
[393346654,1762499433227,-581.0,0.00019834,2]
[393346656,1762499433236,-2167.41,0.00019835,2]
[393346658,1762499433246,-3292.0,0.00020137,2]
[393346660,1762499433257,-735.4,0.00020187,2]
[393346662,1762499433266,-2167.41,0.00020423,2]
[393346664,1762499433275,-350.0,0.00021,2]
[393346666,1762499433285,-2167.41,0.0002101,2]
[393346668,1762499433295,-2167.41,0.00021597,2]
[393346670,1762499433304,-151.0,0.0002164,2]
[393346672,1762499433313,-151.0,0.0002164,2]
[393346674,1762499433323,-151.0,0.0002164,2]
[393346676,1762499433332,-480.31,0.00021962,2]
[393346678,1762499433341,-4609.0,0.00022148,2]
[393346681,1762499433352,-2167.41,0.00022184,2]
[393346683,1762499433361,-2420.37,0.00022643,2]
[393346685,1762499433370,-425.0845408,0.00022772,2]
[393346687,1762499433382,-1742.3254592,0.00022772,2]
[393346689,1762499433392,-400.0,0.00023,2]
[393346691,1762499433401,-1161.83603597,0.00023034,2]
[393346693,1762499433412,-5378.53161582,0.00023034,2]
[393346922,1762499438213,-500.0,0.00015137,2]
[393346923,1762499438223,-3085.92234821,0.00023034,2]
[393346924,1762499438233,-250.0,0.00023607,2]
[393346925,1762499438243,-711.32530394,0.00024359,2]
[393346926,1762499438254,-5200.58259243,0.00024359,2]
[393346927,1762499438273,-541.09210363,0.00024359,2]
[393346928,1762499438283,-56.52639339,0.00024794,2]
[393346929,1762499438316,-198.76360661,0.00024794,2]
[393346930,1762499438326,-450.0,0.00025,2]
[393346931,1762499438335,-2000.01,0.00025,2]
[393346932,1762499438347,-24266.98839338,0.00025383,2]
[393346933,1762499438403,-1287.79013562,0.00025383,2]
[393346934,1762499440276,-531.44185686,0.00016437,2]
[393346935,1762499440286,-612.28069834,0.00016437,2]
[393346936,1762499440296,-500.0,0.00016437,2]
[393346937,1762499440306,-317.50447738,0.00016437,2]
[393346938,1762499440315,-500.0,0.00016437,2]
[393346939,1762499440325,-597.61849702,0.00016437,2]
[393346940,1762499440335,-13515.591471,0.00025383,2]
[393346941,1762499440344,-500.0,0.00025507,2]
[393346942,1762499440353,-150.0,0.00025833,2]
[393346943,1762499440362,-150.0,0.00025833,2]
[393346944,1762499440371,-150.0,0.00025833,2]
[393346945,1762499440382,-150.0,0.00025833,2]
[393346946,1762499440392,-157.45979605,0.00025835,2]
[393346947,1762499440402,-500.0,0.00025836,2]
[393346948,1762499440411,-253.4049455,0.0002597,2]
[393346949,1762499440420,-150.0,0.0002597,2]
[393346950,1762499440429,-150.0,0.0002597,2]
[393346951,1762499440438,-150.0,0.00026107,2]
[393346952,1762499440447,-150.0,0.00026107,2]
[393346953,1762499440456,-150.0,0.00026244,2]
[393346954,1762499440466,-207.27976634,0.00026244,2]
[393346955,1762499440476,-151.0,0.00026352,2]
[393346956,1762499440486,-151.0,0.00026352,2]
[393346957,1762499440495,-151.0,0.00026352,2]
[393346958,1762499440505,-151.0,0.00026352,2]
[393346959,1762499440514,-151.0,0.00026352,2]
[393346960,1762499440523,-151.0,0.00026352,2]
[393346961,1762499440532,-151.0,0.00026352,2]
[393346962,1762499440541,-151.0,0.00026352,2]
[393346963,1762499440550,-151.0,0.00026352,2]
[393346964,1762499440560,-151.0,0.00026352,2]
[393346965,1762499440569,-151.0,0.00026352,2]
[393346966,1762499440578,-151.0,0.00026352,2]
[393346967,1762499440587,-151.0,0.00026352,2]
[393346968,1762499440596,-151.0,0.00026352,2]
[393346969,1762499440605,-151.0,0.00026352,2]
[393346970,1762499440614,-151.0,0.00026352,2]
[393346972,1762499440624,-151.0,0.00026352,2]
[393346973,1762499440633,-151.0,0.00026352,2]
[393346975,1762499440642,-151.0,0.00026352,2]
[393346976,1762499440651,-151.0,0.00026352,2]
[393346977,1762499440660,-151.0,0.00026352,2]
[393346978,1762499440669,-151.0,0.00026352,2]
[393346979,1762499440679,-151.0,0.00026352,2]
[393346980,1762499440689,-151.0,0.00026352,2]
[393346981,1762499440699,-151.0,0.00026352,2]
[393346982,1762499440708,-151.0,0.00026352,2]
[393346983,1762499440717,-151.0,0.00026352,2]
[393346984,1762499440727,-151.0,0.00026352,2]
[393346985,1762499440736,-93753.06,0.00026368,2]
[393346986,1762499440746,-481.92632213,0.00026373,2]
[393346987,1762499440755,-500.0,0.00026373,2]
[393346988,1762499440764,-512.33896105,0.00026373,2]
[393346989,1762499440773,-330.33341059,0.00026373,2]
[393346990,1762499440782,-500.0,0.00026373,2]
[393346991,1762499440791,-500.0,0.00026373,2]
[393346992,1762499440800,-150.0,0.00026381,2]
[393346993,1762499440809,-218.24179502,0.00026518,2]
[393346994,1762499440819,-500.0,0.00026661,2]
[393346995,1762499440827,-735.4,0.00026676,2]
[393346996,1762499440836,-150.0,0.00026756,2]
[393346997,1762499440846,-9035.0,0.00026791,2]
[393346998,1762499440855,-172.40826591,0.00026921,2]
[393346999,1762499440864,-510.5905813,0.00026921,2]
[393347000,1762499440874,-501.0611995,0.00026921,2]
[393347001,1762499440884,-164.0,0.00027,7]
[393347002,1762499440894,-313.0,0.00027,7]
[393347003,1762499440903,-3640.29,0.00027123,2]
[393347004,1762499440915,-500.0,0.00027255,2]
[393347005,1762499440924,-1000.0,0.00027392,2]
[393347006,1762499440936,-186.45372762,0.00027397,2]
[393347007,1762499440945,-512.65,0.00027397,2]
[393347008,1762499440954,-181.42,0.00027397,10]
[393347009,1762499440964,-313.0,0.00027671,14]
[393347010,1762499440972,-2000.0,0.000279,2]
[393347011,1762499440982,-600.0,0.00028,7]
[393347012,1762499440991,-233.33506662,0.00028,7]
[393347013,1762499441000,-157.45979605,0.00028011,110]
[393347014,1762499441008,-485.75988999,0.00028102,2]
[393347015,1762499441018,-22349.2572535,0.00028191,3]
[393347016,1762499441030,-163.36,0.00028191,2]
[393347017,1762499441040,-500.0,0.000282,2]
[393347018,1762499441048,-59308.37,0.00028201,2]
[393347019,1762499441058,-166.66,0.00028202,30]
[393347020,1762499441069,-216.39743355,0.00028268,2]
[393347021,1762499441078,-1000.0,0.0002842,2]
[393347022,1762499441087,-4469.8514507,0.00028594,3]
[393347023,1762499441097,-884.15415734,0.0002862,2]
[393347024,1762499441106,-216.39743355,0.00028674,2]
[393347025,1762499441115,-1207.85278956,0.000287,2]
[393347026,1762499441124,-165.0,0.00028767,14]
[393347027,1762499441133,-313.0,0.00028767,14]
[393347028,1762499441143,-166.66,0.00028796,30]
[393347029,1762499441153,-318.46200207,0.00028803,2]
[393347030,1762499441162,-216.39743355,0.00028861,2]
[393347031,1762499441171,-4469.8514507,0.00028903,3]
[393347032,1762499441180,-884.15415734,0.00028907,2]
[393347033,1762499441189,-6050.8174033,0.00028913,2]
[393347034,1762499441199,-1258.0,0.00028917,5]
[393347035,1762499441208,-4469.8514507,0.00028937,3]
[393347036,1762499441218,-592.47248963,0.0002898,2]
[393347037,1762499441228,-884.15415734,0.00029136,2]
[393347038,1762499441237,-498.0,0.00029144,2]
[393347039,1762499441246,-500.0,0.00029144,2]
[393347040,1762499441254,-513.0,0.00029144,2]
[393347041,1762499441264,-158.55449375,0.00029144,2]
[393347042,1762499441274,-150.0,0.00029144,2]
[393347043,1762499441283,-216.39743355,0.00029158,2]
[393347044,1762499441292,-498.0,0.00029281,2]
[393347045,1762499441301,-500.0,0.00029281,2]
[393347046,1762499441311,-513.0,0.00029281,2]
[393347047,1762499441320,-884.15415734,0.00029346,2]
[393347048,1762499441330,-216.39743355,0.00029358,2]
[393347049,1762499441339,-265.77,0.00029373,4]
[393347050,1762499441349,-4469.8514507,0.00029379,3]
[393347051,1762499441358,-150.0,0.00029389,30]
[393347052,1762499441366,-500.0,0.00029389,30]
[393347053,1762499441374,-500.0,0.00029389,30]
[393347054,1762499441383,-150.0,0.00029389,30]
[393347055,1762499441392,-500.0,0.00029389,30]
[393347056,1762499441401,-500.0,0.00029389,30]
[393347057,1762499441410,-150.0,0.00029389,30]
[393347058,1762499441419,-500.0,0.00029389,14]
[393347059,1762499441428,-154.7243316,0.00029389,30]
[393347060,1762499441438,-500.0,0.00029389,30]
[393347061,1762499441447,-500.0,0.00029389,27]
[393347062,1762499441457,-166.66,0.00029389,30]
[393347063,1762499441466,-498.0,0.00029418,2]
[393347064,1762499441475,-500.0,0.00029418,2]
[393347065,1762499441484,-513.0,0.00029418,2]
[393347066,1762499441494,-425.04503646,0.00029432,3]
[393347067,1762499441503,-4469.8514507,0.00029439,3]
[393347068,1762499441513,-1000.0,0.00029447,2]
[393347069,1762499441522,-12649.0,0.00029466,2]
[393347070,1762499441531,-500.0,0.00029468,2]
[393347071,1762499441540,-999.0,0.00029503,3]
[393347072,1762499441550,-13409.5543521,0.00029511,3]
[393347073,1762499441559,-4469.8514507,0.00029516,3]
[393347074,1762499441568,-477.99034883,0.00029521,3]
[393347075,1762499441577,-150.0,0.00029526,30]
[393347076,1762499441586,-500.0,0.00029526,30]
[393347077,1762499441595,-500.0,0.00029526,30]
[393347078,1762499441604,-161.91063358,0.00029526,30]
[393347079,1762499441613,-500.0,0.00029526,30]
[393347080,1762499441623,-500.0,0.00029526,30]
[393347081,1762499441633,-206.79233266,0.00029526,30]
[393347082,1762499441643,-500.0,0.00029526,14]
[393347083,1762499441653,-500.0,0.00029526,30]
[393347084,1762499441662,-500.0,0.00029526,27]
[393347085,1762499441672,-3415.49,0.00029526,2]
[393347086,1762499441682,-13409.5543521,0.00029529,3]
[393347087,1762499441691,-477.99034883,0.00029539,3]
[393347088,1762499441700,-44698.514507,0.00029539,3]
[393347089,1762499441709,-92902.76,0.00029549,2]
[393347090,1762499441718,-2683.40998405,0.00029549,2]
[393347091,1762499441728,-498.0,0.00029555,2]
[393347092,1762499441737,-500.0,0.00029555,2]
[393347093,1762499441746,-513.0,0.00029555,2]
[393347094,1762499441755,-485.75988998,0.00029602,2]
[393347095,1762499441764,-4469.8514507,0.00029607,3]
[393347096,1762499441774,-884.15415734,0.0002966,2]
[393347097,1762499441783,-150.0,0.00029663,30]
[393347098,1762499441792,-408.98498589,0.00029663,30]
[393347099,1762499441801,-406.55778374,0.00029663,30]
[393347100,1762499441810,-500.0,0.00029663,30]
[393347101,1762499441819,-500.0,0.00029663,30]
[393347102,1762499441828,-500.0,0.00029663,14]
[393347103,1762499441837,-500.0,0.00029663,30]
[393347104,1762499441846,-472.70415926,0.00029663,27]
[393347105,1762499441856,-4469.8514507,0.00029679,3]
[393347106,1762499441865,-6050.81740327,0.00029689,2]
[393347107,1762499441874,-498.0,0.00029692,2]
[393347108,1762499441883,-500.0,0.00029692,2]
[393347109,1762499441892,-513.0,0.00029692,2]
[393347110,1762499441901,-216.39743355,0.00029799,2]
[393347111,1762499441911,-156.32912669,0.000298,30]
[393347112,1762499441920,-500.0,0.000298,30]
[393347113,1762499441929,-500.0,0.000298,30]
[393347114,1762499441938,-500.0,0.000298,14]
[393347115,1762499441947,-500.0,0.000298,30]
[393347116,1762499441956,-1000.0,0.000298,2]
[393347117,1762499441965,-498.0,0.00029829,2]
[393347118,1762499441974,-402.6862279,0.00029829,2]
[393347119,1762499441983,-513.0,0.00029829,2]
[393347120,1762499441992,-318.462002,0.00029892,15]
[393347121,1762499442001,-1000.0,0.000299,2]
[393347122,1762499442012,-4469.8514507,0.00029927,3]
[393347123,1762499442023,-480.31,0.0002993,2]
[393347124,1762499442034,-500.0,0.00029937,30]
[393347125,1762499442044,-500.0,0.00029937,30]
[393347126,1762499442054,-500.0,0.00029937,14]
[393347127,1762499442063,-500.0,0.00029937,30]
[393347128,1762499442072,-498.0,0.00029966,2]
[393347129,1762499442081,-513.0,0.00029966,2]
[393347130,1762499442091,-13409.5543521,0.00029979,3]
[393347131,1762499442100,-16777.9887647,0.00029979,3]
[393347132,1762499442110,-166.66,0.00029983,30]
[393347133,1762499442119,-530.67245019,0.00029988,2]
[393347134,1762499442128,-208.49035451,0.0003,14]
[393347135,1762499442137,-884.15415734,0.00030021,2]
[393347136,1762499442147,-216.39743355,0.00030024,2]
[393347137,1762499442156,-500.0,0.00030074,30]
[393347138,1762499442165,-500.0,0.00030074,30]
[393347139,1762499442174,-157.56828376,0.00030074,14]
[393347140,1762499442184,-167.43543441,0.00030074,30]
[393347141,1762499442193,-498.0,0.00030103,2]
[393347142,1762499442202,-513.0,0.00030103,2]
[393347143,1762499442212,-175.48706705,0.00030137,120]
[393347144,1762499442221,-216.39743355,0.00030169,2]
[393347145,1762499442231,-226.25909422,0.00030181,2]
[393347146,1762499442241,-884.15415734,0.00030183,2]
[393347147,1762499442250,-316.0,0.00030205,14]
[393347148,1762499442260,-500.0,0.00030211,30]
[393347149,1762499442269,-500.0,0.00030211,30]
[393347150,1762499442278,-498.0,0.0003024,2]
[393347151,1762499442287,-513.0,0.0003024,2]
[393347152,1762499442298,-4469.8514507,0.00030338,3]
[393347153,1762499442307,-500.0,0.00030348,30]
[393347154,1762499442316,-407.89774482,0.00030348,30]
[393347155,1762499442326,-498.0,0.00030377,2]
[393347156,1762499442335,-513.0,0.00030377,2]
[393347157,1762499442345,-151.456,0.00030408,26]
[393347158,1762499442354,-3681.335,0.00030408,26]
[393347159,1762499442363,-4469.8514507,0.00030456,3]
[393347160,1762499442373,-6050.81740327,0.00030466,2]
[393347161,1762499442383,-1000.0,0.00030474,2]
[393347162,1762499442392,-500.0,0.00030485,30]
[393347163,1762499442402,-16777.9887647,0.00030504,3]
[393347164,1762499442411,-216.39743355,0.0003051,2]
[393347165,1762499442419,-498.0,0.00030514,2]
[393347166,1762499442428,-513.0,0.00030514,2]
[393347167,1762499442438,-500.0,0.00030575,2]